fUSD/lending_fUSD_20260504
["ID","MTS","AMOUNT","RATE_DAILY","PERIOD"]
[421559229,1777883446000,-6410.07512401,0.0003,5]
[421559231,1777883446000,-378.81,0.0003,5]
[421559230,1777883446000,-2586.57542165,0.0003,5]
[421559235,1777883446000,-2027.73115389,0.00030577,2]
[421559227,1777883446000,-200.0,0.000299,2]
[421559225,1777883446000,-5251.72792017,0.00029693,2]
[421559226,1777883446000,-280.0,0.00029828,14]
[421559219,1777883446000,-150.085,0.00029169,22]
[421559223,1777883446000,-150.0,0.00029534,2]
[421559220,1777883446000,-662.12,0.00029222,2]
[421559228,1777883446000,-1981.0,0.0003,2]
[421559257,1777883452000,5031.60041337,0.000107,2]
[421559258,1777883500000,280.0,8.219e-05,2]
[421559261,1777883788000,197.08,0.00029506,120]
[421559262,1777883825000,1148.0,0.0001,6]
[421559263,1777883829000,280.0,8.219e-05,2]
[421559264,1777883912000,280.0,8.219e-05,2]
[421559267,1777884324000,280.0,8.219e-05,2]
[421559268,1777884348000,-1200.0,0.00010699,2]
[421559271,1777884348000,-9156.6333016,0.000107,2]
[421559269,1777884348000,-300.0,0.00010699,2]
[421559272,1777884348000,-181.12135875,0.000107,2]
[421559273,1777884348000,-162.48539177,0.00011539,2]
[421559270,1777884348000,-288.0,0.00010699,2]
[421559274,1777884348000,-150.0,0.00011556,2]
[421559275,1777884415000,-159.83070785,0.00019999,2]
[421559308,1777884632000,-851.0,0.00021,2]
[421559314,1777884632000,-189.0,0.00021757,2]
[421559310,1777884632000,-157.0,0.00021,2]
[421559312,1777884632000,-156.0,0.00021,2]
[421559309,1777884632000,-212.0,0.00021,2]
[421559311,1777884632000,-568.0,0.00021,2]
[421559316,1777884632000,-250.0,0.00021999,2]
[421559318,1777884632000,-274.0,0.00022,2]
[421559320,1777884632000,-156.0,0.00022,2]
[421559329,1777884632000,-157.0,0.00022,2]
[421559322,1777884632000,-151.0,0.00022,2]
[421559331,1777884632000,-568.0,0.00022,2]
[421559333,1777884632000,-156.0,0.00022,2]
[421559337,1777884632000,-1267.0,0.00022435,2]
[421559324,1777884632000,-851.0,0.00022,2]
[421559327,1777884632000,-212.0,0.00022,2]
[421559341,1777884632000,-2463.0,0.00022435,2]
[421559344,1777884632000,-6040.0,0.00022435,2]
[421559347,1777884632000,-1326.27,0.00022562,2]
[421559350,1777884632000,-274.0,0.00023,2]
[421559357,1777884632000,-212.0,0.00023,2]
[421559355,1777884632000,-851.0,0.00023,2]
[421559306,1777884632000,-151.0,0.00021,2]
[421559335,1777884632000,-2168.8,0.00022353,2]
[421559307,1777884632000,-151.0,0.00021,2]
[421559294,1777884632000,-157.0,0.0002,2]
[421559305,1777884632000,-274.0,0.00021,2]
[421559282,1777884632000,-2168.8,0.0001841,2]
[421559281,1777884632000,-162.48539177,0.00016459,2]
[421559283,1777884632000,-1538.48,0.00018856,2]
[421559280,1777884632000,-2168.8,0.00016438,2]
[421559284,1777884632000,-340.0,0.00019999,2]
[421559286,1777884632000,-1056.60302442,0.0002,2]
[421559285,1777884632000,-171.1563974,0.0002,2]
[421559287,1777884632000,-152.0,0.0002,2]
[421559288,1777884632000,-2562.3422753,0.0002,2]
[421559293,1777884632000,-212.0,0.0002,2]
[421559291,1777884632000,-151.0,0.0002,2]
[421559304,1777884632000,-3796.14558579,0.000209,2]
[421559289,1777884632000,-274.0,0.0002,2]
[421559290,1777884632000,-151.0,0.0002,2]
[421559295,1777884632000,-568.0,0.0002,2]
[421559296,1777884632000,-156.0,0.0002,2]
[421559300,1777884632000,-44.46969428,0.00020887,2]
[421559297,1777884632000,-2168.8,0.00020381,2]
[421559298,1777884632000,-37574.68441755,0.000208,2]
[421559365,1777884632000,-274.0,0.00024,2]
[421559302,1777884632000,-151.0,0.00020887,2]
[421559299,1777884632000,-11904.36888245,0.000208,2]
[421559301,1777884632000,-455.53030572,0.00020887,2]
[421559303,1777884632000,-500.0,0.00020887,2]
[421559292,1777884632000,-851.0,0.0002,2]
[421559367,1777884632000,-851.0,0.00024,2]
[421559435,1777884632000,-417.0,0.00027211,10]
[421559361,1777884632000,-568.0,0.00023,2]
[421559431,1777884632000,-500.0,0.00027137,2]
[421559429,1777884632000,-231.62276807,0.00027123,2]
[421559433,1777884632000,-541.0,0.00027211,10]
[421559437,1777884632000,-333.0,0.00027211,10]
[421559427,1777884632000,-150.0,0.00027123,2]
[421559442,1777884632000,-150.0,0.00027397,2]
[421559440,1777884632000,-150.0,0.00027397,2]
[421559444,1777884632000,-150.0,0.00027397,2]
[421559448,1777884632000,-150.0,0.00027397,2]
[421559461,1777884632000,-500.0,0.000274,7]
[421559450,1777884632000,-150.0,0.00027397,2]
[421559463,1777884632000,-12184.07,0.00027734,2]
[421559454,1777884632000,-1500.0,0.00027397,2]
[421559465,1777884632000,-925.0,0.000278,2]
[421559467,1777884632000,-5000.0,0.00027841,2]
[421559456,1777884632000,-207.63,0.00027397,2]
[421559458,1777884632000,-710.6,0.00027397,10]
[421559470,1777884632000,-1000.0,0.00027941,2]
[421559472,1777884632000,-4651.04471337,0.00028204,2]
[421559474,1777884632000,-2168.8,0.00028267,2]
[421559476,1777884632000,-2463.0,0.00028435,2]
[421559478,1777884632000,-212.42,0.00028457,2]
[421559353,1777884632000,-157.0,0.00023,2]
[421559418,1777884632000,-4651.04471337,0.00026533,2]
[421559424,1777884632000,-150.0,0.00027123,2]
[421559452,1777884632000,-250.0,0.00027397,2]
[421559420,1777884632000,-2000.0,0.00027061,2]
[421559422,1777884632000,-150.0,0.00027123,2]
[421559363,1777884632000,-156.0,0.00023,2]
[421559359,1777884632000,-159.0,0.00023,2]
[421559369,1777884632000,-212.0,0.00024,2]
[421559371,1777884632000,-568.0,0.00024,2]
[421559375,1777884632000,-2168.8,0.00024324,2]
[421559379,1777884632000,-4651.04471341,0.00024862,2]
[421559381,1777884632000,-9366.33757795,0.00024918,2]
[421559385,1777884632000,-27392.50116915,0.00024918,2]
[421559377,1777884632000,-158.09,0.00024658,2]
[421559387,1777884632000,-158.09,0.0002498,7]
[421559389,1777884632000,-6035.26586477,0.00025,7]
[421559373,1777884632000,-156.0,0.00024,2]
[421559398,1777884632000,-576.0,0.00025,2]
[421559415,1777884632000,-2168.8,0.00026296,2]
[421559391,1777884632000,-279.0,0.00025,2]
[421559413,1777884632000,-158.09,0.00025624,2]
[421559402,1777884632000,-212.42,0.00025032,2]
[421559411,1777884632000,-280.0,0.00025578,6]
[421559405,1777884632000,-158.09,0.00025302,30]
[421559409,1777884632000,-1408.741,0.00025435,2]
[421559407,1777884632000,-2463.0,0.00025435,2]
[421559400,1777884632000,-172.0,0.00025,2]
[421559393,1777884632000,-861.0,0.00025,2]
[421559395,1777884632000,-221.0,0.00025,2]
[421559521,1777884633000,-8565.75555911,0.00029643,2]
[421559505,1777884633000,-158.09,0.00029075,30]
[421559509,1777884633000,-501.59463972,0.00029198,5]
[421559511,1777884633000,-882.254,0.00029271,22]
[421559503,1777884633000,-500.0,0.00029074,2]
[421559522,1777884633000,-151.0,0.00029643,2]
[421559524,1777884633000,-187.78006526,0.00029643,2]
[421559530,1777884633000,-4651.04471337,0.00029874,2]
[421559526,1777884633000,-500.0,0.0002978,4]
[421559528,1777884633000,-393.0,0.00029864,2]
[421559532,1777884633000,-154.12624884,0.00030137,2]
[421559507,1777884633000,-168.84,0.00029163,2]
[421559534,1777884633000,-2168.8,0.00030239,2]
[421559519,1777884633000,-200.0,0.00029643,2]
[421559517,1777884633000,-646.65982735,0.00029643,2]
[421559493,1777884633000,-158.09,0.00028811,2]
[421559508,1777884633000,-158.09,0.0002918,7]
[421559536,1777884633000,-181.332007,0.00030395,14]
[421559487,1777884633000,-158.09,0.00028654,2]
[421559491,1777884633000,-158.09,0.00028759,30]
[421559489,1777884633000,-158.09,0.00028706,7]
[421559480,1777884633000,-500.0,0.00028459,3]
[421559482,1777884633000,-300.0,0.00028528,2]
[421559510,1777884633000,-158.14,0.00029232,30]
[421559495,1777884633000,-158.09,0.00028864,7]
[421559497,1777884633000,-158.09,0.00028917,30]
[421559513,1777884633000,-150.0,0.00029534,2]
[421559512,1777884633000,-150.085,0.00029271,22]
[421559515,1777884633000,-1280.88388878,0.00029643,2]
[421559501,1777884633000,-158.09,0.00029022,7]
[421559506,1777884633000,-158.09,0.00029127,2]
[421559499,1777884633000,-158.09,0.00028969,2]
[421559540,1777884633000,-2000.0,0.00030443,2]
[421559484,1777884633000,-500.0,0.0002865,5]
[421559555,1777884633000,-500.0,0.00031102,6]
[421559583,1777884633000,-151.0,0.0003125,7]
[421559580,1777884633000,-151.0,0.0003125,7]
[421559587,1777884633000,-378.556613,0.0003125,7]
[421559589,1777884633000,-378.556613,0.0003125,7]
[421559591,1777884633000,-378.556613,0.0003125,7]
[421559602,1777884633000,-254.18888765,0.000314,7]
[421559578,1777884633000,-151.0,0.0003125,7]
[421559606,1777884633000,-280.63250004,0.000314,7]
[421559592,1777884633000,-162.48539177,0.0003125,7]
[421559596,1777884633000,-126.80183802,0.000313,10]
[421559594,1777884633000,-212.29,0.000313,2]
[421559600,1777884633000,-23.19816198,0.000313,10]
[421559610,1777884633000,-724.63479763,0.00031435,2]
[421559538,1777884633000,-315.406239,0.00030395,14]
[421559608,1777884633000,-465.17861231,0.000314,7]
[421559571,1777884633000,-151.0,0.00031184,30]
[421559585,1777884633000,-378.556613,0.0003125,7]
[421559572,1777884633000,-851.0,0.00031184,30]
[421559556,1777884633000,-212.0,0.00031183,30]
[421559553,1777884633000,-211.90725751,0.00031067,5]
[421559558,1777884633000,-152.0,0.00031183,30]
[421559567,1777884633000,-274.0,0.00031184,30]
[421559561,1777884633000,-157.0,0.00031183,30]
[421559545,1777884633000,-510.56,0.00031,7]
[421559543,1777884633000,-181.332008,0.00030806,14]
[421559562,1777884633000,-568.0,0.00031183,30]
[421559551,1777884633000,-7546.23038648,0.00031015,2]
[421559547,1777884633000,-578.07,0.00031,7]
[421559549,1777884633000,-150.0,0.00031011,2]
[421559569,1777884633000,-151.0,0.00031184,30]
[421559574,1777884633000,-151.0,0.0003125,7]
[421559576,1777884633000,-151.0,0.0003125,7]
[421559565,1777884633000,-156.0,0.00031183,30]
[421559685,1777884640000,-159.06,0.00028652,2]
[421559680,1777884640000,-150.69,0.00024962,7]
[421559679,1777884640000,-150.69,0.00024658,2]
[421559681,1777884640000,-150.69,0.00025266,30]
[421559682,1777884640000,-150.69,0.00025571,2]
[421559684,1777884640000,-409.29645654,0.00027724,10]
[421559683,1777884640000,-182.86354346,0.00027724,10]
[421559692,1777884640000,-159.06,0.00029021,7]
[421559686,1777884640000,-159.06,0.00028704,7]
[421559690,1777884640000,-159.06,0.00028916,30]
[421559687,1777884640000,-159.06,0.00028757,30]
[421559691,1777884640000,-159.06,0.00028968,2]
[421559688,1777884640000,-159.06,0.0002881,2]
[421559693,1777884640000,-159.06,0.00029074,30]
[421559695,1777884640000,-159.06,0.0002918,7]
[421559694,1777884640000,-159.06,0.00029127,2]
[421559697,1777884640000,-3958.08334287,0.00031015,2]
[421559696,1777884640000,-159.08,0.00029232,30]
[421559698,1777884640000,-473.93335833,0.00031015,2]
[421559689,1777884640000,-159.06,0.00028863,7]
[421559707,1777884643000,-411.0,0.00022521,2]
[421559708,1777884643000,-1319.59937498,0.00027397,2]
[421559710,1777884643000,-996.0,0.00031015,30]
[421559709,1777884643000,-180.40062502,0.00027397,2]
[421559712,1777884643000,-3711.45914336,0.00031015,2]
[421559711,1777884643000,-573.0,0.00031015,30]
[421559713,1777884643000,-1738.36520237,0.00031435,2]
[421559714,1777884643000,-1200.0,0.00031456,21]
[421559717,1777884643000,-1065.68207835,0.0003152,2]
[421559716,1777884643000,-151.0,0.00031456,7]
[421559715,1777884643000,-500.0,0.00031456,21]
[421559718,1777884643000,-2886.0929509,0.00031545,2]
[421559719,1777884643000,-17.75896754,0.00031015,30]
[421559742,1777884646000,-553.0,0.00031781,5]
[421559741,1777884646000,-152.0,0.00031767,3]
[421559736,1777884646000,-261.0,0.00031739,2]
[421559738,1777884646000,-253.60213337,0.00031742,2]
[421559734,1777884646000,-1361.9047539,0.000317,2]
[421559737,1777884646000,-157.39786663,0.00031742,2]
[421559733,1777884646000,-1361.9047539,0.000317,2]
[421559728,1777884646000,-605.0,0.00031545,30]
[421559745,1777884646000,-246.0,0.00031792,2]
[421559735,1777884646000,-411.0,0.00031736,2]
[421559732,1777884646000,-1361.90475391,0.000317,2]
[421559731,1777884646000,-181.84407951,0.00031675,5]
[421559740,1777884646000,-411.0,0.00031766,2]
[421559739,1777884646000,-411.0,0.00031745,2]
[421559729,1777884646000,-1764.95176247,0.00031545,2]
[421559726,1777884646000,-194.557822,0.00022407,2]
[421559727,1777884646000,-437.0,0.00031545,30]
[421559730,1777884646000,-492.23,0.00031566,60]
[421559744,1777884646000,-411.0,0.00031781,2]
[421559760,1777884646000,-150.0,0.00031885,2]
[421559746,1777884646000,-3140.1937238,0.00031799,2]
[421559743,1777884646000,-154.13287479,0.00031781,2]
[421559770,1777884646000,-399.67794947,0.00031927,2]
[421559769,1777884646000,-11.32205053,0.00031927,2]
[421559763,1777884646000,-411.0,0.00031887,2]
[421559765,1777884646000,-411.0,0.00031889,2]
[421559768,1777884646000,-200.0,0.000319,5]
[421559761,1777884646000,-411.0,0.00031885,2]
[421559759,1777884646000,-411.0,0.00031883,2]
[421559767,1777884646000,-165.0,0.00031899,2]
[421559756,1777884646000,-411.0,0.00031864,2]
[421559755,1777884646000,-411.0,0.00031859,2]
[421559754,1777884646000,-232.28,0.00031845,120]
[421559749,1777884646000,-871.73520047,0.00031799,2]
[421559750,1777884646000,-500.0,0.00031823,2]
[421559753,1777884646000,-411.0,0.00031838,2]
[421559751,1777884646000,-500.0,0.00031823,60]
[421559752,1777884646000,-637.15,0.00031823,60]
[421559758,1777884646000,-212.42,0.00031881,2]
[421559804,1777884647000,-500.0,0.00032273,5]
[421559802,1777884647000,-500.0,0.00032273,5]
[421559803,1777884647000,-500.0,0.00032273,5]
[421559799,1777884647000,-4453.08847433,0.000322,2]
[421559800,1777884647000,-2168.8,0.0003221,5]
[421559808,1777884647000,-906.16421822,0.000323,2]
[421559801,1777884647000,-249.74,0.00032225,2]
[421559805,1777884647000,-1200.0,0.00032278,21]
[421559816,1777884647000,-349.26758,0.000323,7]
[421559806,1777884647000,-500.0,0.00032278,21]
[421559807,1777884647000,-397.27,0.0003229,2]
[421559809,1777884647000,-16992.64812045,0.000323,30]
[421559811,1777884647000,-151.0,0.000323,7]
[421559813,1777884647000,-151.0,0.000323,7]
[421559810,1777884647000,-151.0,0.000323,7]
[421559815,1777884647000,-151.0,0.000323,7]
[421559798,1777884647000,-851.0,0.00032184,30]
[421559812,1777884647000,-151.0,0.000323,7]
[421559796,1777884647000,-151.0,0.00032184,30]
[421559786,1777884647000,-500.0,0.000321,7]
[421559797,1777884647000,-151.0,0.00032184,30]
[421559783,1777884647000,-500.0,0.000321,7]
[421559772,1777884647000,-411.0,0.00031969,2]
[421559781,1777884647000,-249.73924455,0.00032087,2]
[421559784,1777884647000,-500.0,0.000321,7]
[421559780,1777884647000,-559.07721061,0.00032036,2]
[421559782,1777884647000,-300.0,0.00032087,2]
[421559775,1777884647000,-182.81183547,0.00031974,2]
[421559778,1777884647000,-624.0,0.00032,2]
[421559790,1777884647000,-157.0,0.00032183,30]
[421559785,1777884647000,-500.0,0.000321,7]
[421559787,1777884647000,-151.0,0.000321,7]
[421559788,1777884647000,-212.0,0.00032183,30]
[421559789,1777884647000,-152.0,0.00032183,30]
[421559791,1777884647000,-568.0,0.00032183,30]
[421559792,1777884647000,-156.0,0.00032183,30]
[421559817,1777884647000,-349.26758,0.000323,7]
[421559795,1777884647000,-274.0,0.00032184,30]
[421559794,1777884647000,-151.0,0.00032184,7]
[421559814,1777884647000,-151.0,0.000323,7]
[421559793,1777884647000,-151.0,0.00032184,7]
[421559818,1777884647000,-349.26758,0.000323,7]
[421559842,1777884647000,-378.556613,0.000323,7]
[421559843,1777884647000,-378.556613,0.000323,7]
[421559845,1777884647000,-378.556613,0.000323,7]
[421559849,1777884647000,-1000.0,0.00032366,2]
[421559848,1777884647000,-151.0,0.00032366,7]
[421559846,1777884647000,-327.79840946,0.00032307,2]
[421559847,1777884647000,-175.0,0.00032307,2]
[421559850,1777884647000,-1000.0,0.00032366,2]
[421559851,1777884647000,-1000.0,0.00032366,2]
[421559854,1777884647000,-500.0,0.00032423,7]
[421559855,1777884647000,-583.54402289,0.0003243,2]
[421559852,1777884647000,-1000.0,0.00032366,2]
[421559857,1777884647000,-1000.0,0.0003244,2]
[421559853,1777884647000,-1000.0,0.00032366,2]
[421559858,1777884647000,-1000.0,0.0003244,2]
[421559856,1777884647000,-1000.0,0.0003244,2]
[421559859,1777884647000,-755.99196744,0.0003244,2]
[421559844,1777884647000,-378.556613,0.000323,7]
[421559841,1777884647000,-151.0,0.000323,7]
[421559838,1777884647000,-151.0,0.000323,7]
[421559839,1777884647000,-151.0,0.000323,7]
[421559821,1777884647000,-4293.594177,0.000323,7]
[421559820,1777884647000,-151.0,0.000323,7]
[421559822,1777884647000,-4293.594177,0.000323,7]
[421559823,1777884647000,-4293.594177,0.000323,7]
[421559827,1777884647000,-385.479703,0.000323,7]
[421559830,1777884647000,-1066.33137,0.000323,7]
[421559826,1777884647000,-1066.33137,0.000323,7]
[421559840,1777884647000,-151.0,0.000323,7]
[421559824,1777884647000,-4293.594177,0.000323,7]
[421559831,1777884647000,-151.0,0.000323,7]
[421559828,1777884647000,-1066.33137,0.000323,7]
[421559829,1777884647000,-385.479703,0.000323,7]
[421559832,1777884647000,-385.479703,0.000323,7]
[421559836,1777884647000,-151.0,0.000323,7]
[421559834,1777884647000,-151.0,0.000323,7]
[421559835,1777884647000,-151.0,0.000323,7]
[421559837,1777884647000,-151.0,0.000323,7]
[421559833,1777884647000,-1066.33137,0.000323,7]
[421559825,1777884647000,-385.479703,0.000323,7]
[421559819,1777884647000,-349.26758,0.000323,7]
[421559860,1777884777000,1367.59,0.00028852,120]
[421559861,1777884880000,571.07,0.00028261,120]
[421559863,1777884973000,287.0,0.00030137,120]
[421559865,1777885075000,280.0,8.219e-05,2]
[421559879,1777885473000,1000.0,0.0001,2]
[421559880,1777885485000,280.0,8.219e-05,2]
[421559881,1777885627000,280.0,8.219e-05,2]
[421559885,1777885770000,-4264.882476,0.00018856,2]
[421559883,1777885770000,-596.9,0.00016438,2]
[421559884,1777885770000,-596.9,0.0001841,2]
[421559882,1777885770000,-250.0,0.00014,2]
[421559913,1777885832000,-500.0,0.00020798,2]
[421559905,1777885832000,-500.0,0.00020798,2]
[421559912,1777885832000,-500.0,0.00020798,2]
[421559914,1777885832000,-500.0,0.00020798,2]
[421559907,1777885832000,-500.0,0.00020798,2]
[421559909,1777885832000,-500.0,0.00020798,2]
[421559906,1777885832000,-500.0,0.00020798,2]
[421559915,1777885832000,-500.0,0.00020798,2]
[421559917,1777885832000,-500.0,0.00020798,2]
[421559911,1777885832000,-500.0,0.00020798,2]
[421559908,1777885832000,-500.0,0.00020798,2]
[421559910,1777885832000,-369.51916499,0.00020798,2]
[421559918,1777885832000,-207.9814604,0.00020798,2]
[421559929,1777885832000,-172.0,0.00021,2]
[421559921,1777885832000,-500.0,0.00020798,2]
[421559926,1777885832000,-529.99,0.00020951,2]
[421559916,1777885832000,-500.0,0.00020798,2]
[421559895,1777885832000,-596.9,0.00020381,2]
[421559896,1777885832000,-162.48539177,0.00020433,2]
[421559899,1777885832000,-2242.35732713,0.000206,2]
[421559930,1777885832000,-154.0,0.00021,2]
[421559886,1777885832000,-6208.96,0.00018856,2]
[421559889,1777885832000,-164.0,0.0002,2]
[421559888,1777885832000,-1200.0,0.00019999,2]
[421559887,1777885832000,-300.0,0.00019999,2]
[421559891,1777885832000,-172.0,0.0002,2]
[421559890,1777885832000,-587.0,0.0002,2]
[421559900,1777885832000,-90879.8829,0.000207,2]
[421559892,1777885832000,-154.0,0.0002,2]
[421559902,1777885832000,-500.0,0.00020798,2]
[421559901,1777885832000,-500.0,0.00020798,2]
[421559904,1777885832000,-500.0,0.00020798,2]
[421559903,1777885832000,-500.0,0.00020798,2]
[421559893,1777885832000,-587.0,0.0002,2]
[421559897,1777885832000,-402.0,0.00020569,2]
[421559898,1777885832000,-580287.9918,0.000206,2]
[421559894,1777885832000,-159.0,0.0002,2]
[421559922,1777885832000,-500.0,0.00020798,2]
[421559920,1777885832000,-500.0,0.00020798,2]
[421559928,1777885832000,-587.0,0.00021,2]
[421559976,1777885832000,-164.0,0.00024,2]
[421559969,1777885832000,-159.0,0.00023,2]
[421559967,1777885832000,-587.0,0.00023,2]
[421559972,1777885832000,-2463.0,0.00023137,2]
[421559974,1777885832000,-3500.7099161,0.00023642,2]
[421559978,1777885832000,-587.0,0.00024,2]
[421559980,1777885832000,-172.0,0.00024,2]
[421559982,1777885832000,-159.0,0.00024,2]
[421559981,1777885832000,-587.0,0.00024,2]
[421559984,1777885832000,-150.0,0.00024658,2]
[421559983,1777885832000,-596.9,0.00024324,2]
[421559987,1777885832000,-162.08,0.00024658,2]
[421559985,1777885832000,-255.52,0.00024658,2]
[421559988,1777885832000,-161.43,0.00024658,2]
[421559989,1777885832000,-1257.12340105,0.00024729,2]
[421559990,1777885832000,-152.0,0.00024854,7]
[421559923,1777885832000,-500.0,0.00020798,2]
[421559957,1777885832000,-456.89,0.00022562,2]
[421559965,1777885832000,-172.0,0.00023,2]
[421559986,1777885832000,-161.89,0.00024658,2]
[421559963,1777885832000,-587.0,0.00023,2]
[421559925,1777885832000,-405.0,0.000208,2]
[421559961,1777885832000,-164.0,0.00023,2]
[421559927,1777885832000,-164.0,0.00021,2]
[421559932,1777885832000,-159.0,0.00021,2]
[421559931,1777885832000,-587.0,0.00021,2]
[421559940,1777885832000,-164.0,0.00022,2]
[421559936,1777885832000,-197.08,0.00021814,2]
[421559938,1777885832000,-5000.0,0.00021918,2]
[421559924,1777885832000,-406.0,0.00020798,2]
[421559944,1777885832000,-172.0,0.00022,2]
[421559934,1777885832000,-150.0,0.00021521,2]
[421559950,1777885832000,-159.0,0.00022,2]
[421559946,1777885832000,-158.0,0.00022,2]
[421559948,1777885832000,-587.0,0.00022,2]
[421559958,1777885832000,-5352.55,0.00022562,2]
[421559954,1777885832000,-194.55782198,0.00022407,2]
[421559942,1777885832000,-587.0,0.00022,2]
[421559952,1777885832000,-596.9,0.00022353,2]
[421560032,1777885833000,-154.36,0.00028767,7]
[421560031,1777885833000,-153.74,0.00028674,2]
[421560029,1777885833000,-500.0,0.00028647,3]
[421560020,1777885833000,-2000.0,0.00027508,2]
[421560027,1777885833000,-1393.2,0.00028493,30]
[421560028,1777885833000,-280.0,0.00028598,11]
[421560024,1777885833000,-353.7,0.00028,2]
[421560026,1777885833000,-596.9,0.00028267,2]
[421560025,1777885833000,-255.52,0.00028047,2]
[421560033,1777885833000,-153.74,0.00028767,7]
[421560023,1777885833000,-353.7,0.00028,2]
[421560035,1777885833000,-153.74,0.0002886,30]
[421560052,1777885833000,-353.7,0.00030937,2]
[421560037,1777885833000,-153.74,0.00028953,2]
[421560036,1777885833000,-154.36,0.00028953,2]
[421560038,1777885833000,-154.36,0.00029046,7]
[421560039,1777885833000,-153.74,0.00029046,7]
[421560034,1777885833000,-154.36,0.0002886,30]
[421560040,1777885833000,-2463.0,0.00029137,2]
[421560019,1777885833000,-317.82,0.000274,2]
[421560042,1777885833000,-153.74,0.00029139,30]
[421560041,1777885833000,-154.36,0.00029139,30]
[421560045,1777885833000,-150.0,0.00029534,2]
[421560044,1777885833000,-153.79,0.00029232,2]
[421560043,1777885833000,-154.42,0.00029232,2]
[421560048,1777885833000,-596.9,0.00030239,2]
[421560030,1777885833000,-154.36,0.00028674,2]
[421560017,1777885833000,-317.82,0.000274,2]
[421560008,1777885833000,-150.0,0.00027397,2]
[421560018,1777885833000,-317.82,0.000274,2]
[421560051,1777885833000,-168.846,0.00030911,27]
[421559992,1777885833000,-172.0,0.00025,2]
[421559991,1777885833000,-152.0,0.00024879,7]
[421559995,1777885833000,-597.0,0.00025,2]
[421559993,1777885833000,-594.59857982,0.00025,2]
[421559994,1777885833000,-181.43984619,0.00025,2]
[421560003,1777885833000,-430.0,0.00027107,10]
[421559996,1777885833000,-174.07624584,0.00025,2]
[421559997,1777885833000,-203.24859229,0.00025205,2]
[421560001,1777885833000,-587.0,0.00027107,10]
[421559998,1777885833000,-2463.0,0.00026137,2]
[421560004,1777885833000,-500.0,0.00027137,2]
[421560000,1777885833000,-596.9,0.00026296,2]
[421559999,1777885833000,-500.0,0.00026295,2]
[421560002,1777885833000,-814.0,0.00027107,10]
[421560006,1777885833000,-150.0,0.00027397,2]
[421560005,1777885833000,-1000.0,0.00027188,2]
[421560007,1777885833000,-202.12827399,0.00027397,2]
[421560009,1777885833000,-150.0,0.00027397,2]
[421560011,1777885833000,-1500.0,0.00027397,2]
[421560010,1777885833000,-185.31866047,0.00027397,2]
[421560015,1777885833000,-317.82,0.000274,2]
[421560014,1777885833000,-500.0,0.000274,7]
[421560013,1777885833000,-493.47,0.00027397,10]